fUSD/lending_fUSD_20251026
["ID","MTS","AMOUNT","RATE_DAILY","PERIOD"]
[392454723,1761502254121,-150.91967737,0.00036329,30]
[392454724,1761502254132,-414.6,0.00036332,2]
[392454725,1761502254141,-150.0,0.00036332,2]
[392454726,1761502254150,-414.6,0.00036332,2]
[392454727,1761502254160,-414.6,0.00036332,2]
[392454728,1761502254169,-150.0,0.00036332,2]
[392454729,1761502254179,-150.0,0.00036332,2]
[392454730,1761502254188,-414.6,0.00036332,2]
[392454731,1761502254198,-414.6,0.00036332,2]
[392454732,1761502254207,-150.0,0.00036332,2]
[392454733,1761502254217,-150.0,0.00036332,2]
[392454734,1761502254226,-414.6,0.00036332,2]
[392454735,1761502254236,-207.49,0.00036332,2]
[392454736,1761502254246,-414.6,0.00036332,2]
[392454737,1761502254256,-414.6,0.00036332,2]
[392454738,1761502254266,-395.19,0.00036332,2]
[392454739,1761502254275,-1320.22,0.00036332,14]
[392454740,1761502254284,-558.8683653,0.0003635,2]
[392454741,1761502254294,-650.71139587,0.00036352,2]
[392454742,1761502254303,-166.0,0.00036363,120]
[392454743,1761502254313,-570.66619608,0.00036388,2]
[392454744,1761502254322,-1935.77329407,0.00036388,2]
[392454745,1761502254331,-177.37,0.00036394,2]
[392454746,1761502254341,-1425.0,0.00036406,2]
[392454747,1761502254350,-1000.0,0.00036421,5]
[392454748,1761502254359,-511.80013752,0.00036421,5]
[392454749,1761502254369,-488.0,0.00036438,30]
[392454750,1761502254378,-816.0,0.00036468,120]
[392454751,1761502254387,-256.37660803,0.00036485,2]
[392454752,1761502254395,-150.91967737,0.00036493,30]
[392454753,1761502254405,-5200.0,0.000365,120]
[392454754,1761502254414,-650.71139587,0.00036503,2]
[392454755,1761502254423,-166.66,0.00036541,2]
[392454756,1761502254432,-2500.0,0.00036554,7]
[392454757,1761502254442,-2500.0,0.00036562,7]
[392454758,1761502254451,-172.0,0.0003657,120]
[392454759,1761502254465,-173.0,0.00036571,120]
[392454760,1761502254476,-2500.0,0.00036571,7]
[392454761,1761502254485,-2500.0,0.0003658,7]
[392454762,1761502254495,-2500.0,0.00036589,7]
[392454763,1761502254504,-2500.0,0.00036598,7]
[392454764,1761502254513,-400.0,0.000366,13]
[392454765,1761502254522,-258.0,0.000366,120]
[392454766,1761502254531,-1320.22,0.00036606,14]
[392454767,1761502254542,-2500.0,0.00036606,7]
[392454768,1761502254553,-2500.0,0.00036615,7]
[392454769,1761502254562,-2500.0,0.00036624,7]
[392454770,1761502254572,-3489.0,0.00036627,2]
[392454771,1761502254581,-6459.0,0.00036627,2]
[392454772,1761502254590,-6585.0,0.00036627,2]
[392454773,1761502254599,-558.0,0.00036627,2]
[392454774,1761502254608,-2500.0,0.00036633,7]
[392454775,1761502254618,-177.37,0.00036638,2]
[392454776,1761502254628,-2500.0,0.00036642,7]
[392454777,1761502254638,-170.0,0.00036645,120]
[392454778,1761502254648,-2500.0,0.0003665,7]
[392454779,1761502254659,-650.71139587,0.00036653,2]
[392454780,1761502254668,-2500.0,0.00036659,7]
[392454781,1761502254677,-2500.0,0.00036668,7]
[392454782,1761502254687,-2500.0,0.00036677,7]
[392454783,1761502254696,-256.37660803,0.0003668,2]
[392454784,1761502254705,-2500.0,0.00036686,7]
[392454785,1761502254714,-2500.0,0.00036694,7]
[392454786,1761502254723,-1425.0,0.00036696,2]
[392454787,1761502254733,-400.0,0.000367,13]
[392454788,1761502254742,-2500.0,0.00036703,7]
[392454789,1761502254751,-1404.53873763,0.00036706,2]
[392454790,1761502254760,-2500.0,0.00036712,7]
[392454791,1761502254770,-295.67539148,0.00036719,20]
[392454792,1761502254779,-2500.0,0.00036721,7]
[392454793,1761502254788,-2500.0,0.0003673,7]
[392454794,1761502254798,-909.42220907,0.00036736,30]
[392454795,1761502254807,-2500.0,0.00036738,7]
[392454796,1761502254816,-458.0,0.0003674,120]
[392454797,1761502254826,-2500.0,0.00036747,7]
[392454798,1761502254835,-458.0,0.0003675,120]
[392454799,1761502254844,-458.0,0.0003675,120]
[392454800,1761502254854,-2500.0,0.00036756,7]
[392454801,1761502254863,-458.0,0.0003676,120]
[392454802,1761502254873,-458.0,0.0003676,120]
[392454803,1761502254883,-2500.0,0.00036765,7]
[392454804,1761502254893,-2500.0,0.00036774,7]
[392454805,1761502254902,-2500.0,0.00036782,7]
[392454806,1761502254912,-2500.0,0.00036791,7]
[392454807,1761502254922,-1425.0,0.00036796,2]
[392454808,1761502254931,-2500.0,0.000368,7]
[392454809,1761502254941,-400.0,0.000368,13]
[392454810,1761502254951,-650.71139587,0.00036804,2]
[392454811,1761502254962,-176.46,0.00036825,2]
[392454812,1761502254973,-176.46,0.00036825,2]
[392454813,1761502254982,-176.46,0.00036825,2]
[392454814,1761502254993,-176.46,0.00036825,2]
[392454815,1761502255003,-500.0,0.00036867,120]
[392454816,1761502255013,-1425.0,0.00036872,2]
[392454817,1761502255024,-500.0,0.00036873,5]
[392454818,1761502255033,-256.37660803,0.00036875,2]
[392454819,1761502255042,-570.66619608,0.00036875,2]
[392454820,1761502255051,-169.11988859,0.00036875,2]
[392454821,1761502255060,-1935.77329407,0.00036875,2]
[392454822,1761502255069,-155.28139462,0.00036879,30]
[392454823,1761502255079,-1320.22,0.0003688,14]
[392454824,1761502255088,-459.91,0.0003688,120]
[392454825,1761502255096,-177.37,0.00036883,2]
[392454826,1761502255106,-270.2091,0.00036888,7]
[392454827,1761502255115,-458.0,0.0003689,120]
[392454828,1761502255124,-3112599.71531321,0.0003689,50]
[392454829,1761502255133,-72819.12387031,0.0003689,2]
[392454830,1761502255143,-325.02840719,0.00036891,50]
[392454831,1761502255152,-310.75142036,0.00036891,50]
[392454832,1761502255161,-310.03757102,0.00036891,50]
[392454833,1761502255170,-310.00187855,0.00036891,50]
[392454834,1761502255179,-310.00009393,0.00036891,50]
[392454835,1761502255188,-250.0,0.000369,14]
[392454836,1761502255197,-250.0,0.000369,14]
[392454837,1761502255206,-400.77105669,0.000369,120]
[392454838,1761502255215,-1000.0,0.000369,120]
[392454839,1761502255224,-1015.41907229,0.000369,50]
[392454840,1761502255233,-2233.96588157,0.000369,7]
[392454841,1761502255324,-5800.0,0.000369,2]
[392454842,1761502255339,-190.0,0.000369,50]
[392454843,1761502255349,-250.0,0.000369,50]
[392454844,1761502255358,-250.0,0.000369,50]
[392454845,1761502255367,-300.0,0.000369,23]
[392454846,1761502255375,-300.0,0.000369,23]
[392454847,1761502255384,-300.0,0.000369,23]
[392454848,1761502255393,-300.0,0.000369,23]
[392454849,1761502255403,-300.0,0.000369,23]
[392454850,1761502255411,-1027.0,0.000369,13]
[392454851,1761502255420,-402.31443874,0.00036903,2]
[392454852,1761502255429,-180.0,0.00036903,50]
[392454853,1761502255438,-180.0,0.00036903,50]
[392454854,1761502255447,-150.0,0.00036903,50]
[392454855,1761502255459,-200.0,0.00036903,50]
[392454856,1761502255468,-200.0,0.00036903,50]
[392454857,1761502255477,-200.0,0.00036903,31]
[392454858,1761502255486,-200.0,0.00036903,50]
[392454859,1761502255495,-180.0,0.00036903,120]
[392454860,1761502255505,-163.15933945,0.00036903,120]
[392454861,1761502255514,-325.90643036,0.00036904,50]
[392454862,1761502255523,-1909.53714739,0.00036904,50]
[392454863,1761502255535,-6269.47429577,0.00036904,50]
[392454864,1761502255544,-557.0,0.00036904,2]
[392454865,1761502255553,-501.69821043,0.00036904,2]
[392454866,1761502255562,-4266.0,0.00036904,2]
[392454867,1761502255571,-1342.84049675,0.00036904,2]
[392454868,1761502255580,-151.67042846,0.00036904,2]
[392454869,1761502255589,-184.84828962,0.00036904,2]
[392454870,1761502255598,-3358.07909043,0.00036904,2]
[392454871,1761502255608,-288.21059691,0.00036904,2]
[392454872,1761502255618,-193553.59018643,0.00036904,2]
[392454873,1761502255627,-374371.00760315,0.00036904,2]
[392454874,1761502255635,-156.5,0.00036904,2]
[392454875,1761502255646,-200.0,0.00036904,30]
[392454876,1761502255655,-300.0,0.00036904,30]
[392454877,1761502255664,-215.0,0.00036904,30]
[392454878,1761502255673,-185.33771825,0.00036904,2]
[392454879,1761502255682,-146313.42441879,0.00036904,2]
[392454880,1761502255691,-399.06412469,0.00036904,30]
[392454881,1761502255700,-10802.8300117,0.00036904,3]
[392454882,1761502255709,-1210.0,0.00036904,2]
[392454883,1761502255719,-714.27036313,0.00036904,2]
[392454884,1761502255728,-367.79936231,0.00036904,2]
[392454885,1761502255737,-353.90353642,0.00036904,2]
[392454886,1761502255746,-1292.80043106,0.00036904,2]
[392454887,1761502255755,-2829.27215026,0.00036904,2]
[392454888,1761502255764,-1544.74410834,0.00036904,2]
[392454889,1761502255774,-1046.15999494,0.00036904,2]
[392454890,1761502255783,-380799.76558328,0.00036904,2]
[392454891,1761502255792,-218412.01353485,0.00036904,2]
[392454892,1761502255802,-2746.63339153,0.00036904,2]
[392454893,1761502255811,-153.72332118,0.00036904,2]
[392454894,1761502255820,-1704.19580011,0.00036904,2]
[392454895,1761502255830,-253.11818134,0.00036904,2]
[392454896,1761502255839,-500.0,0.00036904,2]
[392454897,1761502255848,-1006.09190732,0.00036904,2]
[392454898,1761502255857,-1281.4773869,0.00036904,2]
[392454899,1761502255867,-247.4623701,0.00036904,2]
[392454900,1761502255876,-218.23587217,0.00036904,30]
[392454901,1761502255885,-1058.20420682,0.00036904,2]
[392454902,1761502255894,-553.97434263,0.00036904,2]
[392454903,1761502255904,-368.16866661,0.00036904,30]
[392454904,1761502255913,-9381.70902216,0.00036904,2]
[392454905,1761502255923,-1332.51024676,0.00036904,2]
[392454906,1761502255932,-3474.91408184,0.00036904,2]
[392454907,1761502255941,-2231.04488551,0.00036904,2]
[392454908,1761502255950,-23173.6212,0.00036904,2]
[392454909,1761502255959,-759.42732527,0.00036904,2]
[392454910,1761502255968,-13032.74537938,0.00036904,2]
[392454911,1761502255977,-1950.00031966,0.00036904,2]
[392454912,1761502255986,-186.97173758,0.00036904,2]
[392454913,1761502255995,-643.0,0.00036904,2]
[392454914,1761502256004,-985.94191485,0.00036904,2]
[392454915,1761502256013,-582.11092485,0.00036904,2]
[392454916,1761502256022,-1864.41807558,0.00036904,2]
[392454917,1761502256031,-805282.7855385,0.00036904,2]
[392454918,1761502256040,-3291.74127567,0.00036904,2]
[392454919,1761502256048,-157.30790478,0.00036904,2]
[392454920,1761502256057,-178.14036333,0.00036904,2]
[392454921,1761502256066,-537874.02637456,0.00036904,2]
[392454922,1761502256075,-379.20441083,0.00036904,2]
[392454923,1761502256086,-2400.3506425,0.00036904,2]
[392454924,1761502256098,-8378.87138404,0.00036904,2]
[392454925,1761502256108,-172531.56240897,0.00036904,2]
[392454926,1761502256118,-15157.36713689,0.00036904,2]
[392454927,1761502256128,-232.43615939,0.00036904,2]
[392454928,1761502256138,-176.40003485,0.00036904,2]
[392454929,1761502256147,-23272.56814535,0.00036904,2]
[392454930,1761502256156,-295.03859536,0.00036904,30]
[392454931,1761502256166,-190.691111,0.00036904,14]
[392454932,1761502256176,-154609.80888575,0.00036904,14]
[392454933,1761502256184,-156335.99067205,0.00036904,2]
[392454934,1761502256194,-1082.91061196,0.00036904,2]
[392454935,1761502256202,-2500.0,0.00036904,2]
[392454936,1761502256211,-587.88907771,0.00036904,2]
[392454937,1761502256220,-347.29594424,0.00036904,2]
[392454938,1761502256230,-1738.54294961,0.00036904,2]
[392454939,1761502256239,-1100.0,0.00036904,2]
[392454940,1761502256248,-926.02203732,0.00036904,2]
[392454941,1761502256259,-488.9105906,0.00036904,2]
[392454942,1761502256267,-15821.06649474,0.00036904,2]
[392454943,1761502256277,-343.17131032,0.00036904,30]
[392454944,1761502256287,-1611.48253848,0.00036904,2]
[392454945,1761502256296,-57572.97838791,0.00036904,2]
[392454946,1761502256306,-556.65972144,0.00036904,2]
[392454947,1761502256316,-5081.75337758,0.00036904,2]
[392454948,1761502256325,-1027.18497626,0.00036904,2]
[392454949,1761502256335,-370.37222032,0.00036904,2]
[392454950,1761502256346,-2237.01394267,0.00036904,2]
[392454951,1761502256357,-213.82809077,0.00036904,30]
[392454952,1761502256366,-275.0,0.00036904,14]
[392454953,1761502256375,-208.38998264,0.00036904,30]
[392454954,1761502256383,-280.07054984,0.00036904,30]
[392454955,1761502256392,-211.91155118,0.00036904,30]
[392454956,1761502256403,-15021.61115565,0.00036904,2]
[392454957,1761502256414,-23400.05964512,0.00036904,2]
[392454958,1761502256423,-213.69603426,0.00036904,31]
[392454959,1761502256433,-4575.04763376,0.00036904,30]
[392454960,1761502256441,-340.17999079,0.00036904,30]
[392454961,1761502256452,-259444.38757308,0.00036904,2]
[392454962,1761502256466,-400.4680134,0.00036904,30]
[392454963,1761502256475,-275.04198246,0.00036904,30]
[392454964,1761502256484,-2207.21063572,0.00036904,2]
[392454965,1761502256494,-890.31140746,0.00036904,2]
[392454966,1761502256503,-467.94881799,0.00036904,2]
[392454967,1761502256512,-150.0,0.00036904,2]
[392454968,1761502256521,-160.0,0.00036904,2]
[392454969,1761502256531,-438.95275612,0.00036904,30]
[392454970,1761502256541,-160.49,0.00036904,31]
[392454971,1761502256551,-397.77806162,0.00036904,30]
[392454972,1761502256560,-167.69354433,0.00036904,30]
[392454973,1761502256570,-20000.0,0.00036904,2]
[392454974,1761502256580,-150.0,0.00036904,30]
[392454975,1761502256589,-246.54854429,0.00036904,30]
[392454976,1761502256598,-46005.48575917,0.00036904,30]
[392454977,1761502256607,-117691.46342078,0.00036904,15]
[392454978,1761502256616,-83890.76121552,0.00036904,2]
[392454979,1761502256626,-248.01232271,0.00036904,30]
[392454980,1761502256635,-591.75740914,0.00036904,30]
[392454981,1761502256644,-29258.79868182,0.00036904,2]
[392454982,1761502256654,-963076.21233636,0.00036904,2]
[392454983,1761502256663,-281.38719811,0.00036904,30]
[392454984,1761502256673,-49914.50405442,0.00036904,2]
[392454985,1761502256683,-1704.53299499,0.00036904,2]
[392454986,1761502256691,-200000.0,0.00036904,2]
[392454987,1761502256700,-1000.0,0.00036904,30]
[392454988,1761502256709,-8097.88735109,0.00036904,2]
[392454989,1761502256718,-17324.12337973,0.00036904,20]
[392454990,1761502256728,-1000.0,0.00036904,30]
[392454991,1761502256737,-1000.0,0.00036904,30]
[392454992,1761502256747,-1000.0,0.00036904,30]
[392454993,1761502256756,-1000.0,0.00036904,30]
[392454994,1761502256765,-1000.0,0.00036904,30]
[392454995,1761502256775,-1000.0,0.00036904,30]
[392454996,1761502256784,-1000.0,0.00036904,30]
[392454997,1761502256793,-1000.0,0.00036904,30]
[392454998,1761502256802,-1000.0,0.00036904,30]
[392454999,1761502256812,-1000.0,0.00036904,30]
[392455000,1761502256821,-1000.0,0.00036904,30]
[392455001,1761502256830,-1000.0,0.00036904,30]
[392455002,1761502256839,-1000.0,0.00036904,30]
[392455003,1761502256848,-1000.0,0.00036904,30]
[392455004,1761502256857,-447.82981566,0.00036904,30]
[392455005,1761502256867,-1000.0,0.00036904,30]
[392455006,1761502256876,-1000.0,0.00036904,30]
[392455007,1761502256885,-1000.0,0.00036904,30]
[392455008,1761502256895,-1000.0,0.00036904,30]
[392455009,1761502256905,-952.50091523,0.00036904,30]
[392455010,1761502256916,-815.07657095,0.00036904,30]
[392455011,1761502256926,-1272.68633557,0.00036904,30]
[392455012,1761502256935,-155.0,0.00036904,2]
[392455013,1761502256944,-200.0,0.00036904,30]
[392455014,1761502257038,-800.0,0.00036904,120]
[392455015,1761502257049,-800.0,0.00036904,120]
[392455016,1761502257058,-13905.74277677,0.0003691,2]
[392455017,1761502257068,-380.18242532,0.00036968,5]
[392455018,1761502257078,-610.09244465,0.0003697,50]
[392455019,1761502257088,-300.0,0.00036973,5]
[392455020,1761502257099,-420.0,0.00036974,7]
[392455021,1761502257108,-3117071.7977201,0.00036975,50]
[392455022,1761502257118,-3117071.7977201,0.00036975,50]
[392455023,1761502257129,-3117071.7977201,0.00036975,50]
[392455024,1761502257140,-3117071.7977201,0.00036975,120]
[392455025,1761502257150,-402.31443874,0.00036975,2]
[392455026,1761502257160,-72819.12387031,0.00036975,2]
[392455027,1761502257170,-72819.12387031,0.00036975,2]
[392455028,1761502257181,-3117071.7977201,0.00036977,120]
[392455029,1761502257192,-999.0,0.00036986,120]
[392455030,1761502257202,-228.62924937,0.00037,3]
[392455031,1761502257212,-298.16,0.00037,30]
[392455032,1761502257222,-2826.59,0.00037,2]
[392455033,1761502257231,-162.95874915,0.00037,2]
[392455034,1761502257242,-1516.33591812,0.00037,120]
[392455035,1761502257251,-5064.3,0.00037,14]
[392455036,1761502257260,-298.58032261,0.000371,2]
[392455037,1761502257269,-177.37,0.00037127,2]
[392455038,1761502257278,-150.0,0.00037154,2]
[392455039,1761502257287,-168.61,0.00037154,2]
[392455040,1761502257296,-150.0,0.00037154,2]
[392455041,1761502257306,-168.61,0.00037154,2]
[392455042,1761502257315,-176.46,0.00037154,2]
[392455043,1761502257324,-168.61,0.00037154,2]
[392455044,1761502257333,-150.0,0.00037154,2]
[392455045,1761502257342,-176.46,0.00037154,2]
[392455046,1761502257351,-168.61,0.00037154,2]
[392455047,1761502257360,-176.46,0.00037154,2]
[392455048,1761502257369,-168.61,0.00037154,2]
[392455049,1761502257379,-150.0,0.00037154,2]
[392455050,1761502257388,-176.46,0.00037154,2]
[392455051,1761502257397,-168.61,0.00037154,2]
[392455052,1761502257407,-176.46,0.00037154,2]
[392455053,1761502257417,-168.61,0.00037154,2]
[392455054,1761502257426,-150.0,0.00037154,2]
[392455055,1761502257435,-168.61,0.00037154,2]
[392455056,1761502257445,-176.46,0.00037154,2]
[392455057,1761502257456,-176.46,0.00037154,2]
[392455058,1761502257466,-168.61,0.00037154,2]
[392455059,1761502257475,-150.0,0.00037154,2]
[392455060,1761502257485,-176.46,0.00037154,2]
[392455061,1761502257494,-168.61,0.00037154,2]
[392455062,1761502257505,-168.61,0.00037154,2]
[392455063,1761502257514,-176.46,0.00037154,2]
[392455064,1761502257524,-150.0,0.00037154,2]
[392455065,1761502257536,-168.61,0.00037154,2]
[392455066,1761502257545,-176.46,0.00037154,2]
[392455067,1761502257557,-176.46,0.00037154,2]
[392455068,1761502257566,-150.0,0.00037154,2]
[392455069,1761502257575,-337.22,0.00037154,2]
[392455070,1761502257587,-176.46,0.00037154,2]
[392455071,1761502257596,-168.61,0.00037154,2]
[392455072,1761502257605,-176.46,0.00037154,2]
[392455073,1761502257615,-168.61,0.00037154,2]
[392455074,1761502257624,-150.0,0.00037154,2]
[392455075,1761502257632,-176.46,0.00037154,2]
[392455076,1761502257642,-168.61,0.00037154,2]
[392455077,1761502257651,-176.46,0.00037154,2]
[392455078,1761502257660,-168.61,0.00037154,2]
[392455079,1761502257669,-150.0,0.00037154,2]
[392455080,1761502257678,-176.46,0.00037154,2]
[392455081,1761502257687,-168.61,0.00037154,2]
[392455082,1761502257696,-176.46,0.00037154,2]
[392455083,1761502257706,-168.61,0.00037154,2]
[392455084,1761502257715,-150.0,0.00037154,2]
[392455085,1761502257724,-176.46,0.00037154,2]
[392455086,1761502257733,-168.61,0.00037154,2]
[392455087,1761502257742,-176.46,0.00037154,2]
[392455088,1761502257751,-168.61,0.00037154,2]
[392455089,1761502257760,-150.0,0.00037154,2]
[392455090,1761502257769,-176.46,0.00037154,2]
[392455091,1761502257779,-168.61,0.00037154,2]
[392455092,1761502257788,-176.46,0.00037154,2]
[392455093,1761502257797,-168.61,0.00037154,2]
[392455094,1761502257806,-150.0,0.00037154,2]
[392455095,1761502257815,-176.46,0.00037154,2]
[392455096,1761502257825,-168.61,0.00037154,2]
[392455097,1761502257835,-1320.22,0.00037154,14]
[392455098,1761502257846,-704.8,0.00037168,2]
[392455099,1761502257855,-964.69918193,0.00037284,5]
[392455100,1761502257865,-933.46,0.000373,14]
[392455101,1761502257875,-177.37,0.00037372,2]
[392455102,1761502257884,-2382.9,0.000374,7]
[392455103,1761502257894,-1320.22,0.00037428,14]
[392455104,1761502257903,-195.0,0.00037549,120]
[392455105,1761502257912,-4265.39877235,0.0003759,2]
[392455106,1761502257923,-241.03,0.000376,7]
[392455107,1761502257932,-2382.9,0.000376,7]
[392455108,1761502257943,-29914.6913249,0.00037609,2]
[392455109,1761502257952,-177.37,0.00037616,2]
[392455110,1761502257961,-233.2,0.00037671,2]
[392455111,1761502257970,-168.61,0.00037671,2]
[392455112,1761502257979,-168.61,0.00037671,2]
[392455113,1761502257988,-150.0,0.00037671,2]
[392455114,1761502257998,-168.61,0.00037671,2]
[392455115,1761502258007,-283.58,0.00037671,2]
[392455116,1761502258016,-168.61,0.00037671,2]
[392455117,1761502258025,-150.0,0.00037671,2]
[392455118,1761502258034,-176.46,0.00037671,2]
[392455119,1761502258044,-168.61,0.00037671,2]
[392455120,1761502258054,-176.46,0.00037671,2]
[392455121,1761502258064,-150.0,0.00037671,2]
[392455122,1761502258075,-168.61,0.00037671,2]
[392455123,1761502258085,-175.34,0.00037671,2]
[392455124,1761502258095,-168.61,0.00037671,2]
[392455125,1761502258104,-168.61,0.00037671,2]
[392455126,1761502258114,-167.05,0.00037671,2]
[392455127,1761502258124,-1491.0,0.00037701,7]
[392455128,1761502258134,-1320.22,0.00037702,14]
[392455129,1761502258143,-166.66,0.00037708,2]
[392455130,1761502258152,-520.00470585,0.00037749,120]
[392455131,1761502258162,-278.33,0.00037759,2]
[392455132,1761502258171,-700.0,0.0003777,15]
[392455133,1761502258181,-177.37,0.00037861,2]
[392455134,1761502258190,-198.94279026,0.0003788,2]
[392455135,1761502258200,-166.0,0.00037889,120]
[392455136,1761502258210,-158.69352,0.00037948,2]
[392455137,1761502258219,-817.0,0.0003797,2]
[392455138,1761502258230,-176.46,0.00037976,2]
[392455139,1761502258240,-168.61,0.00037976,2]
[392455140,1761502258250,-150.0,0.00037976,2]
[392455141,1761502258260,-176.46,0.00037976,2]
[392455142,1761502258270,-168.61,0.00037976,2]
[392455143,1761502258280,-176.46,0.00037976,2]
[392455144,1761502258289,-168.61,0.00037976,2]
[392455145,1761502258299,-150.0,0.00037976,2]
[392455146,1761502258308,-176.46,0.00037976,2]
[392455147,1761502258318,-223.09,0.00037976,2]
[392455148,1761502258327,-176.46,0.00037976,2]
[392455149,1761502258337,-176.46,0.00037976,2]
[392455150,1761502258347,-176.46,0.00037976,2]
[392455151,1761502258357,-176.46,0.00037976,2]
[392455152,1761502258367,-1320.22,0.00037976,14]
[392455153,1761502258376,-819.8388744,0.00037977,2]
[392455154,1761502258386,-539.96,0.00038,7]
[392455155,1761502258396,-241.03,0.00038,7]
[392455156,1761502258405,-343.29489351,0.00038,7]
[392455157,1761502258415,-275.4134231,0.00038,120]
[392455158,1761502258425,-250.0,0.00038,7]
[392455159,1761502258436,-5064.3,0.00038,14]
[392455160,1761502258447,-10533.63541646,0.0003807,30]
[392455161,1761502258462,-548.0,0.00038073,120]
[392455162,1761502258472,-1164.64120143,0.000381,33]
[392455163,1761502258483,-2382.9,0.000381,7]
[392455164,1761502258495,-177.37,0.00038105,2]
[392455165,1761502258505,-548.0,0.00038132,7]
[392455166,1761502258514,-150.0,0.00038237,2]
[392455167,1761502258524,-208.0,0.00038237,2]
[392455168,1761502258537,-200.0,0.00038237,2]
[392455169,1761502258547,-250.0,0.00038237,2]
[392455170,1761502258556,-213.782,0.00038237,2]
[392455171,1761502258565,-204.497,0.00038237,2]
[392455172,1761502258574,-151.371,0.00038237,2]
[392455173,1761502258584,-254.506,0.00038237,2]
[392455174,1761502258675,-150.0,0.00038237,2]
[392455175,1761502258684,-188.466,0.00038237,2]
[392455176,1761502258693,-150.0,0.00038237,2]
[392455177,1761502258702,-150.899,0.00038237,2]
[392455178,1761502258711,-573.0,0.00038237,2]
[392455179,1761502258721,-2054.0,0.00038237,2]
[392455180,1761502258731,-819.0,0.00038237,2]
[392455181,1761502258741,-3415.0,0.00038237,2]
[392455182,1761502258751,-1320.22,0.0003825,14]
[392455183,1761502258761,-1491.0,0.00038252,2]
[392455184,1761502258770,-31844.16605995,0.000383,30]
[392455185,1761502258780,-2500.0,0.00038338,7]
[392455186,1761502258789,-2500.0,0.00038347,7]
[392455187,1761502258798,-177.37,0.0003835,2]
[392455188,1761502258808,-2500.0,0.00038356,7]
[392455189,1761502258817,-732.52947109,0.00038356,120]
[392455190,1761502258826,-2500.0,0.00038356,7]
[392455191,1761502258836,-300.0,0.00038356,120]
[392455192,1761502258846,-548.0,0.00038383,2]
[392455193,1761502258855,-172.0,0.00038399,120]
[392455194,1761502258864,-173.0,0.000384,120]
[392455195,1761502258873,-258.0,0.0003843,120]
[392455196,1761502258883,-704.8,0.00038465,2]
[392455197,1761502258892,-298.16,0.000385,30]
[392455198,1761502258901,-1320.28764132,0.00038524,30]
[392455199,1761502258910,-1313.0,0.00038544,2]
[392455200,1761502258920,-606.0,0.00038544,2]
[392455201,1761502258928,-1592.0,0.00038544,2]
[392455202,1761502258937,-1270.0,0.00038544,2]
[392455203,1761502258946,-818.0,0.00038544,2]
[392455204,1761502258955,-205.95089584,0.00038552,120]
[392455205,1761502258964,-500.0,0.00038559,5]
[392455206,1761502258975,-6674.8698661,0.00038572,2]
[392455207,1761502258984,-177.37,0.00038594,2]
[392455208,1761502258993,-2826.59,0.000386,30]
[392455209,1761502259002,-933.46,0.000386,14]
[392455210,1761502259011,-5491.0,0.000387,117]
[392455211,1761502259021,-548.0,0.00038709,2]
[392455212,1761502259030,-150.0,0.00038741,7]
[392455213,1761502259039,-974.47304824,0.00038749,2]
[392455214,1761502259048,-1175.68,0.00038777,2]
[392455215,1761502259057,-295.65,0.000388,120]
[392455216,1761502259066,-794.38,0.00038819,120]
[392455217,1761502259075,-177.37,0.00038839,2]
[392455218,1761502259084,-166.66,0.00038876,2]
[392455219,1761502259093,-104335.69509361,0.0003888,2]
[392455220,1761502259102,-2431.8824,0.00038888,30]
[392455221,1761502259111,-1334.0,0.00038992,2]
[392455222,1761502259120,-254350.00851232,0.00039,2]